[Event "Moscow Rapid-ch 2018"]
[Site "Moscow"]
[Date "2018.12.09"]
[Round "11"]
[White "Gorbatov, Alexej"]
[Black "Tarasov, Danila"]
[Result "1/2-1/2"]
[ECO "B20"]
[WhiteElo "2389"]
[BlackElo "1885"]
[Annotator "NA"]
[PlyCount "104"]
[EventDate "2018.12.08"]
[EventType "swiss"]
[EventCountry "RUS"]
[SourceTitle "playchess.com"]
[Source "ChessBase"]
[SourceQuality "1"]
[TimeControl "900+10"]

1. e4 {[%emt 0:00:00]} c5 {[%emt 0:00:00]} 2. b3 {[%emt 0:00:00]} Nf6 {[%emt 0:00:05]} 3. e5 {[%emt 0:00:04]} Nd5 {[%emt 0:00:01]} 4. Bb2 {[%emt 0:00:04]} Nc6 {[%emt 0:00:03]} 5. Nf3 {[%emt 0:00:09]} e6 {[%emt 0:00:05]} 6. g3 {[%emt 0:00:06]} g6 {[%emt 0:00:18]} 7. c4 {[%emt 0:00:29]} Nc7 {[%emt 0:00:04]} 8. Nc3 {[%emt 0:00:03]} Bg7 {[%emt 0:00:07]} 9. Ne4 {[%emt 0:00:02]} O-O {[%emt 0:00:11]} 10. Bc3 {[%emt 0:01:58]} b6 {[%emt 0:00:14]} 11. Bg2 {[%emt 0:00:19]} Bb7 {[%emt 0:00:02]} 12. O-O {[%emt 0:00:44]} Ne8 {[%emt 0:00:15]} 13. Re1 {[%emt 0:00:47]} d5 {[%emt 0:00:18]} 14. exd6 {[%emt 0:00:05]} Nxd6 {[%emt 0:00:05]} 15. Bxg7 {[%emt 0:00:05]} Kxg7 {[%emt 0:00:02]} 16. Nxd6 {[%emt 0:02:41]} Qxd6 {[%emt 0:00:04]} 17. d4 {[%emt 0:00:01]} cxd4 {[%emt 0:00:36]} 18. Nxd4 {[%emt 0:00:27]} Qxd4 {[%emt 0:00:19]} 19. Qxd4+ {[%emt 0:00:02]} Nxd4 {[%emt 0:00:03]} 20. Bxb7 {[%emt 0:00:01]} Rab8 {[%emt 0:00:06]} 21. Rad1 {[%emt 0:00:14]} Nxb3 {[%emt 0:00:36]} 22. axb3 {[%emt 0:00:03]} Rxb7 {[%emt 0:00:01]} 23. f4 {[%emt 0:00:11]} Rc8 {[%emt 0:00:24]} 24. Re5 {[%emt 0:00:26]} Rc5 {[%emt 0:00:28]} 25. Kf2 {[%emt 0:00:10]} Kf6 {[%emt 0:00:06]} 26. Re3 {[%emt 0:02:12]} b5 {[%emt 0:00:19]} 27. cxb5 {[%emt 0:00:02]} Rcxb5 {[%emt 0:00:02]} 28. Rdd3 {[%emt 0:00:01]} h5 {[%emt 0:00:04]} 29. h3 {[%emt 0:00:12]} Rb4 {[%emt 0:00:25]} 30. Kf3 {[%emt 0:00:03]} R4b5 {[%emt 0:00:27]} 31. g4 {[%emt 0:00:10]} hxg4+ {[%emt 0:00:23]} 32. hxg4 {[%emt 0:00:03]} g5 {[%emt 0:00:08]} 33. fxg5+ {[%emt 0:00:23]} Kxg5 {[%emt 0:00:03]} 34. Kg3 {[%emt 0:00:01]} Rc5 {[%emt 0:02:36]} 35. Rd4 {[%emt 0:01:01]} Rcb5 {[%emt 0:00:17]} 36. Rdd3 {[%emt 0:00:01]} a5 {[%emt 0:01:20]} 37. Rc3 {[%emt 0:00:16]} Rd5 {[%emt 0:00:16]} 38. Rf3 {[%emt 0:01:11]} Rdb5 {[%emt 0:01:12]} 39. Rce3 {[%emt 0:00:23]} Rd7 {[%emt 0:01:15]} 40. Re4 {[%emt 0:00:20]} Rdb7 {[%emt 0:00:45]} 41. Ree3 {[%emt 0:00:02]} Rd7 {[%emt 0:00:39]} 42. Re4 {[%emt 0:00:10]} Rdb7 {[%emt 0:00:18]} 43. Ree3 {[%emt 0:00:01]} Rd5 {[%emt 0:00:08]} 44. Re4 {[%emt 0:00:09]} f5 {[%emt 0:03:02]} 45. Rxe6 {[%emt 0:01:40]} fxg4 {[%emt 0:00:16]} 46. Rfe3 {[%emt 0:00:41]} Rf5 {[%emt 0:01:18]} 47. R6e4 {[%emt 0:00:30]} Rb4 {[%emt 0:01:22]} 48. Re8 {[%emt 0:01:22]} Rf3+ {[%emt 0:00:42]} 49. Rxf3 {[%emt 0:00:02]} gxf3 {[%emt 0:00:03]} 50. Re5+ {[%emt 0:00:02]} Kf6 {[%emt 0:00:04]} 51. Rxa5 {[%emt 0:00:02]} Rxb3 {[%emt 0:00:02]} 52. Rc5 {[%emt 0:00:12]} Ra3 {[%emt 0:00:05]} 1/2-1/2

[Event "Moscow Rapid-ch 2018"]
[Site "Moscow"]
[Date "2018.12.09"]
[Round "11"]
[White "Tsvetkov, Andrey"]
[Black "Gurvich, Vitaly"]
[Result "1-0"]
[ECO "E91"]
[WhiteElo "2338"]
[BlackElo "2270"]
[Annotator "NA"]
[PlyCount "53"]
[EventDate "2018.12.08"]
[EventType "swiss"]
[EventCountry "RUS"]
[SourceTitle "playchess.com"]
[Source "ChessBase"]
[SourceQuality "1"]
[TimeControl "900+10"]

1. d4 {[%emt 0:00:00]} Nf6 {[%emt 0:00:00]} 2. c4 {[%emt 0:00:00]} g6 {[%emt 0:00:00]} 3. Nc3 {[%emt 0:00:00]} Bg7 {[%emt 0:00:00]} 4. e4 {[%emt 0:00:00]} d6 {[%emt 0:00:00]} 5. Nf3 {[%emt 0:00:00]} O-O {[%emt 0:00:02]} 6. Be2 {[%emt 0:00:00]} Bg4 {[%emt 0:00:02]} 7. Be3 {[%emt 0:00:00]} Nfd7 {[%emt 0:00:05]} 8. Ng1 {[%emt 0:00:00]} Bxe2 {[%emt 0:00:02]} 9. Ngxe2 {[%emt 0:00:00]} c5 {[%emt 0:00:07]} 10. dxc5 {[%emt 0:00:01]} dxc5 {[%emt 0:00:42]} 11. O-O {[%emt 0:00:02]} Nc6 {[%emt 0:00:02]} 12. f4 {[%emt 0:00:03]} e5 {[%emt 0:03:54]} 13. f5 {[%emt 0:00:37]} Nd4 {[%emt 0:00:05]} 14. Nd5 {[%emt 0:00:03]} f6 {[%emt 0:00:07]} 15. Nec3 {[%emt 0:00:10]} gxf5 {[%emt 0:01:18]} 16. exf5 {[%emt 0:00:05]} Nb6 {[%emt 0:00:02]} 17. b3 {[%emt 0:00:51]} Nxd5 {[%emt 0:00:21]} 18. Nxd5 {[%emt 0:00:01]} b5 {[%emt 0:00:08]} 19. Qd3 {[%emt 0:00:27]} bxc4 {[%emt 0:00:30]} 20. Qxc4 {[%emt 0:00:16]} Kh8 {[%emt 0:00:02]} 21. Rad1 {[%emt 0:00:19]} Rc8 {[%emt 0:00:16]} 22. Nc3 {[%emt 0:00:59]} Qe7 {[%emt 0:01:59]} 23. Ne4 {[%emt 0:00:08]} Rfd8 {[%emt 0:00:11]} 24. Rc1 {[%emt 0:00:49]} Bf8 {[%emt 0:00:31]} 25. g4 {[%emt 0:00:52]} Qb7 {[%emt 0:01:23]} 26. Nxf6 {[%emt 0:00:29]} Be7 {[%emt 0:00:07]} 27. Qf7 {[%emt 0:00:41]} 1-0

[Event "Moscow Rapid-ch 2018"]
[Site "Moscow"]
[Date "2018.12.09"]
[Round "11"]
[White "Dudin, Gleb"]
[Black "Stukan, Martin"]
[Result "1/2-1/2"]
[ECO "D87"]
[WhiteElo "2303"]
[BlackElo "2142"]
[Annotator "NA"]
[PlyCount "115"]
[EventDate "2018.12.08"]
[EventType "swiss"]
[EventCountry "RUS"]
[SourceTitle "playchess.com"]
[Source "ChessBase"]
[SourceQuality "1"]
[TimeControl "900+10"]

1. d4 {[%emt 0:00:00]} Nf6 {[%emt 0:00:00]} 2. c4 {[%emt 0:00:00]} g6 {[%emt 0:00:00]} 3. Nc3 {[%emt 0:00:00]} d5 {[%emt 0:00:00]} 4. cxd5 {[%emt 0:00:00]} Nxd5 {[%emt 0:00:00]} 5. e4 {[%emt 0:00:00]} Nxc3 {[%emt 0:00:00]} 6. bxc3 {[%emt 0:00:00]} Bg7 {[%emt 0:00:00]} 7. Bc4 {[%emt 0:00:01]} O-O {[%emt 0:00:00]} 8. Ne2 {[%emt 0:00:02]} c5 {[%emt 0:00:00]} 9. O-O {[%emt 0:00:12]} Nc6 {[%emt 0:00:00]} 10. Be3 b6 11. Qd2 {[%emt 0:00:14]} Bb7 {[%emt 0:00:38]} 12. Rad1 {[%emt 0:00:11]} cxd4 {[%emt 0:00:08]} 13. cxd4 {[%emt 0:00:04]} Rc8 {[%emt 0:00:03]} 14. Rc1 {[%emt 0:01:54]} e6 {[%emt 0:00:20]} 15. Rfd1 {[%emt 0:01:18]} Na5 {[%emt 0:00:51]} 16. Bd3 {[%emt 0:00:01]} Qd7 {[%emt 0:00:01]} 17. Qb4 {[%emt 0:00:38]} Rxc1 {[%emt 0:01:07]} 18. Rxc1 {[%emt 0:00:14]} Rc8 {[%emt 0:00:01]} 19. Rxc8+ {[%emt 0:00:10]} Qxc8 {[%emt 0:00:01]} 20. Qc3 {[%emt 0:00:30]} Qxc3 {[%emt 0:00:33]} 21. Nxc3 {[%emt 0:00:03]} Nc6 {[%emt 0:00:29]} 22. Ne2 {[%emt 0:01:17]} Nb4 {[%emt 0:00:16]} 23. Bb1 {[%emt 0:00:05]} Ba6 {[%emt 0:00:56]} 24. Nf4 {[%emt 0:05:04]} Bc4 {[%emt 0:00:17]} 25. a3 {[%emt 0:00:03]} Na2 {[%emt 0:00:17]} 26. e5 {[%emt 0:02:29]} Bf8 {[%emt 0:02:30]} 27. Bxa2 {[%emt 0:00:23]} Bxa2 {[%emt 0:00:01]} 28. Bc1 {[%emt 0:00:03]} Bc4 {[%emt 0:00:07]} 29. f3 {[%emt 0:00:09]} Be7 {[%emt 0:04:08]} 30. Kf2 {[%emt 0:00:21]} f6 {[%emt 0:00:19]} 31. exf6 {[%emt 0:00:39]} Bxf6 {[%emt 0:00:01]} 32. Bb2 {[%emt 0:00:01]} b5 {[%emt 0:00:14]} 33. Ke3 {[%emt 0:00:17]} a5 {[%emt 0:00:02]} 34. Nd3 {[%emt 0:00:30]} Bg5+ {[%emt 0:00:38]} 35. f4 {[%emt 0:01:25]} Be7 {[%emt 0:00:20]} 36. Bc3 {[%emt 0:01:14]} Bxa3 {[%emt 0:00:44]} 37. Bxa5 {[%emt 0:00:02]} Bd6 {[%emt 0:01:20]} 38. Bb4 {[%emt 0:00:16]} Bc7 {[%emt 0:00:01]} 39. Ne5 {[%emt 0:00:25]} Bd5 {[%emt 0:00:01]} 40. g3 {[%emt 0:00:05]} Kg7 {[%emt 0:00:07]} 41. Kd3 {[%emt 0:00:32]} h6 {[%emt 0:01:16]} 42. h4 {[%emt 0:00:35]} Kf6 {[%emt 0:00:34]} 43. Ng4+ {[%emt 0:00:04]} Kg7 {[%emt 0:00:01]} 44. Ne5 {[%emt 0:00:05]} Bd8 {[%emt 0:00:05]} 45. Ke3 {[%emt 0:00:26]} g5 {[%emt 0:01:37]} 46. hxg5 {[%emt 0:00:25]} hxg5 {[%emt 0:00:01]} 47. Nd3 {[%emt 0:00:11]} Kf6 {[%emt 0:00:19]} 48. Ne5 {[%emt 0:00:09]} Bc7 {[%emt 0:00:28]} 49. g4 {[%emt 0:00:12]} Bb3 {[%emt 0:00:18]} 50. Nd7+ {[%emt 0:00:07]} Kg6 {[%emt 0:00:13]} 51. Ne5+ {[%emt 0:00:04]} Bxe5 {[%emt 0:00:07]} 52. dxe5 {[%emt 0:00:11]} Bd1 {[%emt 0:00:01]} 53. Be7 {[%emt 0:00:11]} Bxg4 {[%emt 0:00:08]} 54. fxg5 {[%emt 0:00:07]} Kf5 {[%emt 0:00:07]} 55. Kd4 {[%emt 0:00:01]} Bh5 {[%emt 0:00:13]} 56. Kc5 {[%emt 0:00:17]} Be8 {[%emt 0:00:05]} 57. Kd4 {[%emt 0:00:02]} Bd7 {[%emt 0:00:20]} 58. Bf6 {[%emt 0:00:02]} 1/2-1/2

[Event "Moscow Rapid-ch 2018"]
[Site "Moscow"]
[Date "2018.12.09"]
[Round "11"]
[White "Borisova, Ekaterina"]
[Black "Utiatskaja, Irina"]
[Result "0-1"]
[ECO "B94"]
[WhiteElo "2244"]
[BlackElo "2246"]
[Annotator "NA"]
[PlyCount "144"]
[EventDate "2018.12.08"]
[EventType "swiss"]
[EventCountry "RUS"]
[SourceTitle "playchess.com"]
[Source "ChessBase"]
[SourceQuality "1"]
[TimeControl "900+10"]

1. e4 {[%emt 0:00:00]} c5 {[%emt 0:00:00]} 2. Nf3 {[%emt 0:00:00]} d6 {[%emt 0:00:00]} 3. d4 {[%emt 0:00:00]} cxd4 {[%emt 0:00:00]} 4. Nxd4 {[%emt 0:00:00]} Nf6 {[%emt 0:00:00]} 5. Nc3 {[%emt 0:00:00]} a6 {[%emt 0:00:00]} 6. Bg5 {[%emt 0:00:00]} Nbd7 {[%emt 0:00:16]} 7. f4 {[%emt 0:00:00]} Qc7 {[%emt 0:00:05]} 8. Qf3 {[%emt 0:00:01]} b5 {[%emt 0:00:08]} 9. O-O-O {[%emt 0:00:16]} Bb7 {[%emt 0:00:01]} 10. Nd5 {[%emt 0:00:37]} Nxd5 {[%emt 0:01:07]} 11. exd5 {[%emt 0:00:03]} g6 {[%emt 0:00:21]} 12. Nc6 {[%emt 0:02:40]} Bxc6 {[%emt 0:00:45]} 13. dxc6 {[%emt 0:01:04]} Nc5 {[%emt 0:00:57]} 14. Qc3 {[%emt 0:03:08]} Rg8 {[%emt 0:01:10]} 15. Bd3 {[%emt 0:02:13]} Qxc6 {[%emt 0:02:47]} 16. Rhe1 {[%emt 0:00:28]} Nxd3+ 17. Qxd3 {[%emt 0:00:09]} e6 {[%emt 0:01:41]} 18. Bf6 {[%emt 0:02:22]} Rc8 {[%emt 0:00:16]} 19. Kb1 {[%emt 0:00:32]} Be7 {[%emt 0:00:13]} 20. Bd4 {[%emt 0:00:52]} d5 {[%emt 0:01:03]} 21. g4 {[%emt 0:00:13]} Kd7 {[%emt 0:00:48]} 22. Re2 {[%emt 0:00:30]} Qc4 {[%emt 0:00:22]} 23. Qe3 {[%emt 0:00:10]} b4 {[%emt 0:02:06]} 24. f5 {[%emt 0:00:27]} gxf5 {[%emt 0:00:02]} 25. gxf5 {[%emt 0:00:03]} Rc6 {[%emt 0:00:04]} 26. b3 {[%emt 0:00:41]} Qb5 {[%emt 0:00:05]} 27. f6 {[%emt 0:01:16]} Bc5 {[%emt 0:00:34]} 28. Bxc5 {[%emt 0:00:12]} Qxc5 {[%emt 0:00:19]} 29. Qxc5 {[%emt 0:00:43]} Rxc5 {[%emt 0:00:02]} 30. Rd4 {[%emt 0:00:02]} a5 {[%emt 0:00:45]} 31. Rh4 {[%emt 0:00:02]} Rg6 {[%emt 0:00:16]} 32. Rxh7 {[%emt 0:00:39]} Rxf6 {[%emt 0:00:00]} 33. h4 {[%emt 0:00:14]} Rc3 {[%emt 0:00:02]} 34. Rh2 {[%emt 0:00:08]} Rg3 {[%emt 0:00:22]} 35. Kc1 {[%emt 0:00:37]} Rgg6 {[%emt 0:01:18]} 36. h5 {[%emt 0:00:16]} Rh6 {[%emt 0:00:00]} 37. Rg7 {[%emt 0:00:05]} Rf5 {[%emt 0:00:08]} 38. Rg8 {[%emt 0:00:13]} Rhxh5 {[%emt 0:00:04]} 39. Re2 {[%emt 0:00:07]} d4 {[%emt 0:00:17]} 40. Ra8 {[%emt 0:00:02]} Rc5 {[%emt 0:00:16]} 41. Kb2 {[%emt 0:00:09]} Rc7 {[%emt 0:00:47]} 42. Rd2 {[%emt 0:00:14]} Rd5 {[%emt 0:00:01]} 43. Rf2 {[%emt 0:00:05]} Ke7 {[%emt 0:00:02]} 44. a3 {[%emt 0:00:09]} bxa3+ {[%emt 0:00:07]} 45. Kxa3 {[%emt 0:00:01]} Rdc5 {[%emt 0:00:01]} 46. Kb2 {[%emt 0:00:02]} e5 {[%emt 0:00:25]} 47. Ra6 {[%emt 0:00:03]} e4 {[%emt 0:00:22]} 48. Raf6 {[%emt 0:00:09]} Ke8 {[%emt 0:00:02]} 49. R6f4 {[%emt 0:00:09]} Re5 {[%emt 0:00:03]} 50. Rh2 {[%emt 0:00:22]} Rce7 {[%emt 0:00:35]} 51. Kc1 {[%emt 0:00:17]} f5 {[%emt 0:00:11]} 52. Kd2 {[%emt 0:00:04]} Kd7 {[%emt 0:00:07]} 53. Rh5 {[%emt 0:00:05]} Rf7 {[%emt 0:01:00]} 54. Rg5 {[%emt 0:00:38]} Ke6 {[%emt 0:00:05]} 55. Rg6+ {[%emt 0:00:15]} Rf6 {[%emt 0:00:01]} 56. Rg8 {[%emt 0:00:01]} Rc5 {[%emt 0:00:07]} 57. Re8+ {[%emt 0:00:05]} Kd7 {[%emt 0:00:27]} 58. Rexe4 {[%emt 0:00:07]} fxe4 {[%emt 0:00:30]} 59. Rxf6 {[%emt 0:00:02]} e3+ {[%emt 0:00:17]} 60. Kd1 {[%emt 0:00:15]} Rh5 {[%emt 0:00:07]} 61. Rf4 {[%emt 0:00:12]} Rh1+ {[%emt 0:00:03]} 62. Ke2 {[%emt 0:00:03]} Rh2+ {[%emt 0:00:05]} 63. Ke1 {[%emt 0:00:29]} Rd2 {[%emt 0:00:01]} 64. Re4 {[%emt 0:00:18]} Kd6 {[%emt 0:00:01]} 65. c3 {[%emt 0:00:08]} Kd5 {[%emt 0:00:19]} 66. Re8 {[%emt 0:00:02]} dxc3 {[%emt 0:00:01]} 67. Rxe3 {[%emt 0:00:05]} Kd4 {[%emt 0:00:06]} 68. Re8 {[%emt 0:00:07]} Rb2 {[%emt 0:00:25]} 69. Rd8+ {[%emt 0:00:20]} Ke3 {[%emt 0:00:04]} 70. Re8+ {[%emt 0:00:04]} Kd3 {[%emt 0:00:02]} 71. Ra8 {[%emt 0:00:22]} Rb1+ {[%emt 0:00:03]} 72. Kf2 {[%emt 0:00:01]} c2 {[%emt 0:00:01]} 0-1

[Event "Moscow Rapid-ch 2018"]
[Site "Moscow"]
[Date "2018.12.09"]
[Round "11"]
[White "Paramzina, Anastasya"]
[Black "Afanasieva, Alexandra"]
[Result "1-0"]
[ECO "B23"]
[WhiteElo "2229"]
[BlackElo "1973"]
[Annotator "NA"]
[PlyCount "79"]
[EventDate "2018.12.08"]
[EventType "swiss"]
[EventCountry "RUS"]
[SourceTitle "playchess.com"]
[Source "ChessBase"]
[SourceQuality "1"]
[TimeControl "900+10"]

1. e4 c5 2. Nc3 d6 3. d4 cxd4 4. Qxd4 Nc6 5. Qd2 g6 6. b3 Bh6 7. f4 Nf6 8. Bb2 O-O 9. O-O-O a5 10. Kb1 a4 11. Be2 axb3 12. axb3 Qa5 13. h3 Bg7 14. Bd3 Nb4 15. Nge2 Nd7 16. h4 Nc5 17. Bc4 Nxe4 18. Qe3 Nxc3+ 19. Nxc3 Bf5 20. Rd2 Na2 21. Na4 Bxb2 22. Kxb2 b5 23. Rd5 Qc7 24. Rxf5 bxc4 25. Rb5 cxb3 26. cxb3 Qd7 27. Qe2 Rfb8 28. Rxb8+ Rxb8 29. Kxa2 Qb7 30. Qc2 Qb4 31. g3 d5 32. h5 Qd4 33. h6 Qb4 34. Qc3 Qxc3 35. Nxc3 d4 36. Ne4 f5 37. Ng5 Rc8 38. Kb2 Rc3 39. Rc1 Rxc1 40. Kxc1 1-0

[Event "Moscow Rapid-ch 2018"]
[Site "Moscow"]
[Date "2018.12.09"]
[Round "11"]
[White "Chudinovskikh, Alexander M"]
[Black "Matyunin, Maxim"]
[Result "1-0"]
[ECO "C01"]
[WhiteElo "2184"]
[BlackElo "2218"]
[Annotator "NA"]
[PlyCount "109"]
[EventDate "2018.12.08"]
[EventType "swiss"]
[EventCountry "RUS"]
[SourceTitle "playchess.com"]
[Source "ChessBase"]
[SourceQuality "1"]
[TimeControl "900+10"]

1. e4 {[%emt 0:00:00]} e6 {[%emt 0:00:00]} 2. d4 {[%emt 0:00:00]} d5 {[%emt 0:00:00]} 3. exd5 {[%emt 0:00:00]} exd5 {[%emt 0:00:00]} 4. Nf3 {[%emt 0:00:00]} Bd6 {[%emt 0:00:00]} 5. c4 {[%emt 0:00:00]} c6 {[%emt 0:00:00]} 6. Nc3 {[%emt 0:00:00]} Ne7 {[%emt 0:00:00]} 7. Bd3 {[%emt 0:00:39]} O-O {[%emt 0:00:02]} 8. O-O {[%emt 0:00:16]} dxc4 {[%emt 0:00:02]} 9. Bxc4 {[%emt 0:00:02]} Bg4 {[%emt 0:00:04]} 10. h3 {[%emt 0:00:14]} Bh5 {[%emt 0:00:03]} 11. Ne4 {[%emt 0:00:24]} Nd5 {[%emt 0:00:37]} 12. Ng3 {[%emt 0:00:11]} Bg6 {[%emt 0:00:16]} 13. Ne5 {[%emt 0:00:06]} Bxe5 {[%emt 0:00:41]} 14. dxe5 {[%emt 0:00:02]} Re8 {[%emt 0:00:01]} 15. f4 {[%emt 0:00:17]} Qh4 {[%emt 0:01:02]} 16. Kh2 {[%emt 0:00:30]} Ne7 {[%emt 0:00:02]} 17. Qg4 {[%emt 0:02:22]} Qxg4 {[%emt 0:00:27]} 18. hxg4 {[%emt 0:00:01]} Bc2 {[%emt 0:00:34]} 19. a4 {[%emt 0:00:20]} Rd8 {[%emt 0:01:32]} 20. b3 {[%emt 0:00:22]} b5 {[%emt 0:00:31]} 21. axb5 {[%emt 0:00:06]} cxb5 {[%emt 0:00:01]} 22. Bxb5 {[%emt 0:00:07]} Bxb3 {[%emt 0:00:02]} 23. Ba3 {[%emt 0:00:26]} Nbc6 {[%emt 0:00:30]} 24. Rac1 {[%emt 0:00:59]} Bd5 {[%emt 0:00:03]} 25. Rfd1 {[%emt 0:00:27]} a6 {[%emt 0:00:11]} 26. Ba4 {[%emt 0:00:20]} Rac8 {[%emt 0:00:31]} 27. Bd6 {[%emt 0:00:15]} Be6 {[%emt 0:02:40]} 28. f5 {[%emt 0:00:12]} Nxe5 {[%emt 0:02:12]} 29. Bxe5 {[%emt 0:00:18]} Rxd1 {[%emt 0:00:05]} 30. Rxd1 {[%emt 0:00:04]} Bc4 {[%emt 0:00:05]} 31. Rc1 {[%emt 0:01:10]} Bd5 {[%emt 0:00:36]} 32. Rxc8+ {[%emt 0:00:57]} Nxc8 {[%emt 0:00:02]} 33. Bc7 {[%emt 0:00:11]} Na7 {[%emt 0:00:14]} 34. Ne2 {[%emt 0:00:08]} Kf8 {[%emt 0:00:11]} 35. Bd6+ Kg8 36. Nf4 {[%emt 0:00:12]} Be4 {[%emt 0:00:04]} 37. Kg3 {[%emt 0:00:11]} Nc8 {[%emt 0:00:04]} 38. Bc5 {[%emt 0:00:02]} f6 {[%emt 0:00:12]} 39. Bb3+ {[%emt 0:00:05]} Kh8 {[%emt 0:00:02]} 40. Be6 {[%emt 0:00:08]} Bb7 {[%emt 0:00:00]} 41. Kf2 {[%emt 0:00:10]} a5 {[%emt 0:00:01]} 42. Ke3 {[%emt 0:00:05]} a4 {[%emt 0:00:02]} 43. Kd4 {[%emt 0:00:09]} g6 {[%emt 0:00:01]} 44. Bf8 {[%emt 0:00:50]} Na7 {[%emt 0:00:17]} 45. Kc5 {[%emt 0:00:16]} Be4 {[%emt 0:00:11]} 46. Kb6 {[%emt 0:00:08]} Nc6 {[%emt 0:00:03]} 47. Nd5 {[%emt 0:01:26]} Ne5 {[%emt 0:00:19]} 48. Nxf6 {[%emt 0:00:08]} gxf5 {[%emt 0:00:34]} 49. gxf5 {[%emt 0:00:49]} Bxg2 {[%emt 0:00:54]} 50. Nh5 {[%emt 0:00:13]} h6 {[%emt 0:00:10]} 51. Bg7+ {[%emt 0:00:05]} Kh7 {[%emt 0:00:01]} 52. Bxe5 {[%emt 0:00:02]} Bh3 {[%emt 0:00:05]} 53. Nf6+ {[%emt 0:00:11]} Kg7 {[%emt 0:00:03]} 54. Ng4+ {[%emt 0:00:26]} Kh7 {[%emt 0:00:01]} 55. f6 {[%emt 0:00:09]} 1-0

[Event "Moscow Rapid-ch 2018"]
[Site "Moscow"]
[Date "2018.12.09"]
[Round "11"]
[White "Gorovenko, Darya"]
[Black "Strutinskaia, Galina"]
[Result "1/2-1/2"]
[ECO "A32"]
[WhiteElo "2163"]
[BlackElo "2201"]
[Annotator "NA"]
[PlyCount "69"]
[EventDate "2018.12.08"]
[EventType "swiss"]
[EventCountry "RUS"]
[SourceTitle "playchess.com"]
[Source "ChessBase"]
[SourceQuality "1"]
[TimeControl "900+10"]

1. d4 {[%emt 0:00:00]} e6 {[%emt 0:00:00]} 2. Nf3 {[%emt 0:00:00]} c5 {[%emt 0:00:00]} 3. c4 {[%emt 0:00:00]} cxd4 {[%emt 0:00:07]} 4. Nxd4 {[%emt 0:00:04]} Nf6 {[%emt 0:00:03]} 5. Nc3 {[%emt 0:00:02]} a6 {[%emt 0:00:12]} 6. e4 {[%emt 0:00:07]} Bb4 {[%emt 0:00:03]} 7. Bd3 {[%emt 0:00:23]} Nc6 {[%emt 0:00:04]} 8. Nxc6 {[%emt 0:00:44]} dxc6 {[%emt 0:00:02]} 9. O-O {[%emt 0:00:06]} e5 {[%emt 0:00:02]} 10. Qf3 {[%emt 0:01:37]} O-O {[%emt 0:00:40]} 11. Bg5 {[%emt 0:00:12]} Be7 {[%emt 0:00:01]} 12. h3 {[%emt 0:00:14]} h6 {[%emt 0:00:06]} 13. Bh4 {[%emt 0:00:18]} Be6 {[%emt 0:00:09]} 14. Rfd1 {[%emt 0:00:20]} Nd7 {[%emt 0:00:18]} 15. Bxe7 {[%emt 0:00:30]} Qxe7 {[%emt 0:00:01]} 16. Qh5 {[%emt 0:01:29]} Qg5 {[%emt 0:01:18]} 17. Qxg5 {[%emt 0:00:25]} hxg5 {[%emt 0:00:01]} 18. b4 {[%emt 0:00:39]} a5 {[%emt 0:00:30]} 19. a3 {[%emt 0:00:02]} Nf6 {[%emt 0:00:22]} 20. Na4 {[%emt 0:00:25]} axb4 {[%emt 0:00:17]} 21. axb4 {[%emt 0:00:02]} Rfd8 {[%emt 0:00:01]} 22. Nc5 {[%emt 0:00:22]} Rxa1 {[%emt 0:00:43]} 23. Rxa1 {[%emt 0:00:01]} Rd4 {[%emt 0:00:18]} 24. Ra8+ {[%emt 0:01:00]} Kh7 {[%emt 0:00:04]} 25. Nxe6 {[%emt 0:00:37]} fxe6 {[%emt 0:00:04]} 26. Ra3 {[%emt 0:00:03]} g4 {[%emt 0:00:14]} 27. hxg4 {[%emt 0:00:57]} Nxg4 {[%emt 0:00:00]} 28. Kf1 {[%emt 0:00:03]} Kg6 {[%emt 0:00:09]} 29. Ke2 {[%emt 0:00:03]} Kg5 {[%emt 0:00:02]} 30. g3 {[%emt 0:02:44]} Nf6 {[%emt 0:00:13]} 31. Ke3 {[%emt 0:00:05]} Ng4+ {[%emt 0:00:07]} 32. Ke2 {[%emt 0:00:01]} Nf6 {[%emt 0:00:01]} 33. Ke3 {[%emt 0:00:01]} Ng4+ {[%emt 0:00:09]} 34. Ke2 {[%emt 0:00:03]} Nf6 {[%emt 0:00:01]} 35. Ke3 1/2-1/2